fUSD/lending_fUSD_20250708
["ID","MTS","AMOUNT","RATE_DAILY","PERIOD"]
[370297359,1751941849010,-460.0,0.00030297,7]
[370297360,1751941849019,-460.0,0.00030297,7]
[370297361,1751941849029,-1296.79,0.00030297,7]
[370297362,1751941849039,-460.0,0.00030297,7]
[370297363,1751941849048,-460.0,0.00030297,7]
[370297364,1751941849058,-2941.08,0.00030297,7]
[370297365,1751941849067,-460.0,0.00030297,7]
[370297366,1751941849076,-500.18497202,0.00030297,7]
[370297367,1751941849086,-490.0,0.00030297,7]
[370297368,1751941849095,-460.0,0.00030297,7]
[370297369,1751941849105,-466.63316058,0.00030297,7]
[370297370,1751941849115,-460.0,0.00030297,7]
[370297371,1751941849124,-460.0,0.00030297,7]
[370297372,1751941849134,-460.0,0.00030297,7]
[370297373,1751941849144,-464.29597695,0.00030297,7]
[370297374,1751941849153,-460.0,0.00030297,7]
[370297375,1751941849164,-460.0,0.00030297,7]
[370297376,1751941849174,-460.0,0.00030297,7]
[370297377,1751941849183,-460.0,0.00030297,7]
[370297378,1751941849193,-460.0,0.00030297,7]
[370297379,1751941849203,-490.0,0.00030297,7]
[370297380,1751941849213,-524.82636659,0.00030297,7]
[370297381,1751941849222,-460.0,0.00030297,7]
[370297382,1751941849232,-460.0,0.00030297,7]
[370297383,1751941849242,-460.0,0.00030297,7]
[370297384,1751941849251,-151.0,0.00030297,7]
[370297385,1751941849260,-490.0,0.00030297,7]
[370297386,1751941849270,-1194.33,0.00030297,7]
[370297387,1751941849279,-460.0,0.00030297,7]
[370297388,1751941849288,-460.0,0.00030297,7]
[370297389,1751941849298,-1895.61,0.00030297,7]
[370297390,1751941849307,-490.0,0.00030297,7]
[370297391,1751941849317,-460.0,0.00030297,7]
[370297392,1751941849327,-463.5383848,0.00030297,7]
[370297393,1751941849337,-460.0,0.00030297,7]
[370297394,1751941849346,-490.0,0.00030297,7]
[370297395,1751941849355,-2040.43,0.00030297,7]
[370297396,1751941849366,-732.9,0.00030297,7]
[370297397,1751941849375,-460.0,0.00030297,7]
[370297398,1751941849385,-490.0,0.00030297,7]
[370297399,1751941849395,-460.0,0.00030297,7]
[370297400,1751941849404,-460.0,0.00030297,7]
[370297401,1751941849413,-460.0,0.00030297,7]
[370297402,1751941849422,-1680.68,0.00030297,7]
[370297403,1751941849432,-1000.0,0.00030297,7]
[370297404,1751941849441,-522.16711761,0.00030297,7]
[370297405,1751941849450,-460.0,0.00030297,7]
[370297406,1751941849460,-522.78579777,0.00030297,7]
[370297407,1751941849473,-460.0,0.00030297,7]
[370297408,1751941849482,-151.0,0.00030297,7]
[370297409,1751941849492,-1997.32,0.00030297,7]
[370297410,1751941849502,-460.0,0.00030297,7]
[370297411,1751941849512,-460.0,0.00030297,7]
[370297412,1751941849521,-460.0,0.00030297,7]
[370297413,1751941849531,-460.0,0.00030297,7]
[370297414,1751941849542,-522.77759409,0.00030297,7]
[370297415,1751941849552,-460.0,0.00030297,7]
[370297416,1751941849561,-460.0,0.00030297,7]
[370297417,1751941849570,-460.0,0.00030297,7]
[370297418,1751941849580,-524.52954466,0.00030297,7]
[370297419,1751941849589,-460.0,0.00030297,7]
[370297420,1751941849598,-151.0,0.00030297,7]
[370297421,1751941849607,-460.0,0.00030297,7]
[370297422,1751941849617,-522.13716551,0.00030297,7]
[370297423,1751941849625,-490.0,0.00030297,7]
[370297424,1751941849636,-493.75939592,0.00030297,7]
[370297425,1751941849645,-460.0,0.00030297,7]
[370297426,1751941849654,-460.0,0.00030297,7]
[370297427,1751941849664,-1958.96,0.00030297,7]
[370297428,1751941849673,-460.0,0.00030297,7]
[370297429,1751941849682,-497.05331314,0.00030297,7]
[370297430,1751941849691,-460.0,0.00030297,7]
[370297431,1751941849700,-490.0,0.00030297,7]
[370297432,1751941849710,-460.0,0.00030297,7]
[370297433,1751941849719,-460.0,0.00030297,7]
[370297434,1751941849729,-460.0,0.00030297,7]
[370297435,1751941849738,-460.0,0.00030297,7]
[370297436,1751941849748,-151.0,0.00030297,7]
[370297437,1751941849762,-460.0,0.00030297,7]
[370297438,1751941849771,-460.0,0.00030297,7]
[370297439,1751941849780,-460.0,0.00030297,7]
[370297440,1751941849790,-460.0,0.00030297,7]
[370297441,1751941849800,-746.74,0.00030297,7]
[370297442,1751941849810,-460.0,0.00030297,7]
[370297443,1751941849824,-460.0,0.00030297,7]
[370297444,1751941849833,-492.29742683,0.00030297,7]
[370297445,1751941849844,-460.0,0.00030297,7]
[370297446,1751941849854,-460.0,0.00030297,7]
[370297447,1751941849863,-493.53273813,0.00030297,7]
[370297448,1751941849873,-493.39061276,0.00030297,7]
[370297449,1751941849882,-460.0,0.00030297,7]
[370297450,1751941849891,-460.0,0.00030297,7]
[370297451,1751941849901,-460.0,0.00030297,7]
[370297452,1751941849910,-460.0,0.00030297,7]
[370297453,1751941849921,-460.0,0.00030297,7]
[370297454,1751941849930,-522.78641232,0.00030297,7]
[370297455,1751941849939,-460.0,0.00030297,7]
[370297456,1751941849949,-806.13,0.00030297,7]
[370297457,1751941849959,-922.2,0.00030297,7]
[370297458,1751941849970,-460.0,0.00030297,7]
[370297459,1751941849981,-490.0,0.00030297,7]
[370297460,1751941849990,-480.97361975,0.00030297,7]
[370297461,1751941850000,-460.0,0.00030297,7]
[370297462,1751941850011,-460.0,0.00030297,7]
[370297463,1751941850022,-460.0,0.00030297,7]
[370297464,1751941850032,-492.24621744,0.00030297,7]
[370297465,1751941850041,-460.0,0.00030297,7]
[370297466,1751941850050,-460.0,0.00030297,7]
[370297467,1751941850059,-460.0,0.00030297,7]
[370297468,1751941850069,-460.0,0.00030297,7]
[370297469,1751941850078,-151.0,0.00030297,7]
[370297470,1751941850087,-460.0,0.00030297,7]
[370297471,1751941850096,-460.0,0.00030297,7]
[370297472,1751941850105,-460.0,0.00030297,7]
[370297473,1751941850114,-460.0,0.00030297,7]
[370297474,1751941850126,-460.0,0.00030297,7]
[370297475,1751941850137,-493.16660037,0.00030297,7]
[370297476,1751941850146,-460.0,0.00030297,7]
[370297477,1751941850157,-591.68945999,0.00030297,7]
[370297478,1751941850165,-1077.15,0.00030297,7]
[370297479,1751941850174,-1580.18,0.00030297,7]
[370297480,1751941850183,-460.0,0.00030297,7]
[370297481,1751941850193,-460.0,0.00030297,7]
[370297482,1751941850203,-460.0,0.00030297,7]
[370297483,1751941850212,-460.0,0.00030298,7]
[370297484,1751941850222,-521.06255725,0.00030298,7]
[370297485,1751941850232,-460.0,0.00030298,7]
[370297486,1751941850242,-467.8839305,0.00030298,7]
[370297487,1751941850252,-524.89054083,0.00030298,7]
[370297488,1751941850261,-460.0,0.00030298,7]
[370297489,1751941850272,-460.0,0.00030298,7]
[370297490,1751941850403,-464.62530404,0.00030298,7]
[370297491,1751941850413,-528.02587063,0.00030298,7]
[370297492,1751941850422,-460.0,0.00030298,7]
[370297493,1751941850432,-300.0,0.00030298,7]
[370297494,1751941850441,-471.85823885,0.00030298,7]
[370297495,1751941850451,-460.0,0.00030298,7]
[370297496,1751941850460,-460.0,0.00030298,7]
[370297497,1751941850474,-460.0,0.00030298,7]
[370297498,1751941850484,-460.0,0.00030298,7]
[370297499,1751941850493,-521.6669432,0.00030298,7]
[370297500,1751941850503,-460.0,0.00030298,7]
[370297501,1751941850514,-467.30923991,0.00030298,7]
[370297502,1751941850524,-467.26835778,0.00030298,7]
[370297503,1751941850534,-463.08139986,0.00030298,7]
[370297504,1751941850547,-470.01238207,0.00030298,7]
[370297505,1751941850558,-460.0,0.00030298,7]
[370297506,1751941850569,-460.0,0.00030298,7]
[370297507,1751941850579,-460.0,0.00030298,7]
[370297508,1751941850589,-521.30964354,0.00030298,7]
[370297509,1751941850599,-460.0,0.00030298,7]
[370297510,1751941850611,-460.0,0.00030298,7]
[370297511,1751941850621,-460.0,0.00030298,7]
[370297512,1751941850632,-505.56132426,0.00030298,7]
[370297513,1751941850641,-525.98834546,0.00030298,7]
[370297514,1751941850651,-460.0,0.00030298,7]
[370297515,1751941850660,-460.0,0.00030298,7]
[370297516,1751941850669,-460.0,0.00030298,7]
[370297517,1751941850680,-460.0,0.00030298,7]
[370297518,1751941850690,-460.0,0.00030298,7]
[370297519,1751941850699,-460.0,0.00030298,7]
[370297520,1751941850709,-468.58266235,0.00030298,7]
[370297521,1751941850719,-466.03967971,0.00030298,7]
[370297522,1751941850729,-460.0,0.00030298,7]
[370297523,1751941850739,-460.0,0.00030298,7]
[370297524,1751941850748,-458.07846656,0.00030298,7]
[370297525,1751941850758,-460.0,0.00030298,7]
[370297526,1751941850768,-460.0,0.00030298,7]
[370297527,1751941850778,-776.98,0.00030298,7]
[370297528,1751941850787,-460.0,0.00030298,7]
[370297529,1751941850796,-460.0,0.00030298,7]
[370297530,1751941850805,-460.0,0.00030298,7]
[370297531,1751941850814,-460.0,0.00030298,7]
[370297532,1751941850824,-460.0,0.00030298,7]
[370297533,1751941850834,-468.61941108,0.00030298,7]
[370297534,1751941850844,-466.38659105,0.00030298,7]
[370297535,1751941850853,-465.34673524,0.00030298,7]
[370297536,1751941850863,-464.14706451,0.00030298,7]
[370297537,1751941850873,-464.80537823,0.00030298,7]
[370297538,1751941850883,-460.0,0.00030298,7]
[370297539,1751941850892,-460.0,0.00030298,7]
[370297540,1751941850902,-467.69600029,0.00030298,7]
[370297541,1751941850911,-460.0,0.00030298,7]
[370297542,1751941850920,-460.0,0.00030298,7]
[370297543,1751941850930,-471.02818883,0.00030298,7]
[370297544,1751941850939,-461.4372885,0.00030298,7]
[370297545,1751941850949,-460.0,0.00030298,7]
[370297546,1751941850959,-463.61889965,0.00030298,7]
[370297547,1751941850968,-460.0,0.00030298,7]
[370297548,1751941850977,-467.59371054,0.00030298,7]
[370297549,1751941850987,-462.73792856,0.00030298,7]
[370297550,1751941850997,-460.0,0.00030298,7]
[370297551,1751941851006,-473.51259279,0.00030298,7]
[370297552,1751941851017,-469.53216022,0.00030298,7]
[370297553,1751941851026,-469.62983021,0.00030298,7]
[370297554,1751941851035,-460.5551057,0.00030298,7]
[370297555,1751941851044,-460.0,0.00030298,7]
[370297556,1751941851054,-460.0,0.00030298,7]
[370297557,1751941851063,-463.33678426,0.00030298,7]
[370297558,1751941851073,-460.0,0.00030298,7]
[370297559,1751941851083,-467.22870312,0.00030298,7]
[370297560,1751941851093,-379.03110407,0.00030298,7]
[370297561,1751941851103,-465.3260696,0.00030298,7]
[370297562,1751941851113,-334.44107525,0.00030298,7]
[370297563,1751941851122,-464.65313602,0.00030298,7]
[370297564,1751941851131,-460.0,0.00030298,7]
[370297565,1751941851141,-460.0,0.00030298,7]
[370297566,1751941851150,-470.727264,0.00030298,7]
[370297567,1751941851159,-460.0,0.00030298,7]
[370297568,1751941851169,-460.0,0.00030298,7]
[370297569,1751941851181,-468.94979452,0.00030298,7]
[370297570,1751941851190,-460.0,0.00030298,7]
[370297571,1751941851200,-469.84595668,0.00030298,7]
[370297572,1751941851209,-460.0,0.00030298,7]
[370297573,1751941851219,-460.0,0.00030298,7]
[370297574,1751941851228,-460.0,0.00030298,7]
[370297575,1751941851238,-460.0,0.00030298,7]
[370297576,1751941851248,-460.0,0.00030298,7]
[370297577,1751941851257,-615.76,0.00030298,7]
[370297578,1751941851267,-460.0,0.00030298,7]
[370297579,1751941851277,-642.03,0.00030298,7]
[370297580,1751941851287,-493.76169238,0.00030298,7]
[370297581,1751941851297,-460.0,0.00030298,7]
[370297582,1751941851306,-460.0,0.00030298,7]
[370297583,1751941851317,-151.0,0.00030298,7]
[370297584,1751941851327,-460.0,0.00030298,7]
[370297585,1751941851336,-460.0,0.00030298,7]
[370297586,1751941851346,-151.960167,0.00030298,7]
[370297587,1751941851355,-151.0,0.00030298,7]
[370297588,1751941851365,-598.85,0.00030298,7]
[370297589,1751941851375,-151.0,0.00030298,7]
[370297590,1751941851386,-552.85,0.00030298,7]
[370297591,1751941851395,-151.0,0.00030298,7]
[370297592,1751941851405,-151.0,0.00030298,7]
[370297593,1751941851415,-151.752227,0.00030298,7]
[370297594,1751941851424,-460.0,0.00030298,7]
[370297595,1751941851433,-460.0,0.00030298,7]
[370297596,1751941851442,-151.0,0.00030298,7]
[370297597,1751941851452,-151.0,0.00030298,7]
[370297598,1751941851461,-460.0,0.00030298,7]
[370297599,1751941851473,-151.0,0.00030298,7]
[370297600,1751941851482,-151.0,0.00030298,7]
[370297601,1751941851492,-460.0,0.00030298,7]
[370297602,1751941851501,-460.0,0.00030298,7]
[370297603,1751941851511,-151.0,0.00030298,7]
[370297604,1751941851520,-460.0,0.00030298,7]
[370297605,1751941851529,-151.0,0.00030298,7]
[370297606,1751941851539,-460.0,0.00030298,7]
[370297607,1751941851549,-151.0,0.00030298,7]
[370297608,1751941851558,-500.0,0.00030298,7]
[370297609,1751941851567,-460.0,0.00030298,7]
[370297610,1751941851576,-151.0,0.00030298,7]
[370297611,1751941851587,-151.0,0.00030298,7]
[370297612,1751941851597,-460.0,0.00030298,7]
[370297613,1751941851606,-472.3959625,0.00030298,7]
[370297614,1751941851615,-151.0,0.00030298,7]
[370297615,1751941851625,-155.569117,0.00030298,7]
[370297616,1751941851635,-151.0,0.00030298,7]
[370297617,1751941851645,-152.734602,0.00030298,7]
[370297618,1751941851654,-151.0,0.00030298,7]
[370297619,1751941851664,-258.275655,0.00030298,7]
[370297620,1751941851673,-258.275655,0.00030298,7]
[370297621,1751941851683,-716.386919,0.00030298,7]
[370297622,1751941851692,-716.386919,0.00030298,7]
[370297623,1751941851702,-151.0,0.00030298,7]
[370297624,1751941851712,-1656.789343,0.00030298,7]
[370297625,1751941851722,-154.287865,0.00030298,7]
[370297626,1751941851731,-1656.789343,0.00030298,7]
[370297627,1751941851740,-344.415785,0.00030298,7]
[370297628,1751941851750,-344.415785,0.00030298,7]
[370297629,1751941851759,-151.0,0.00030298,7]
[370297630,1751941851768,-191.25633,0.00030298,7]
[370297631,1751941851778,-151.0,0.00030298,7]
[370297632,1751941851788,-151.0,0.00030298,7]
[370297633,1751941851798,-151.0,0.00030298,7]
[370297634,1751941851807,-151.0,0.00030298,7]
[370297635,1751941851817,-187.01364,0.00030298,7]
[370297636,1751941851826,-187.01364,0.00030298,7]
[370297637,1751941851835,-151.0,0.00030298,7]
[370297638,1751941851845,-151.0,0.00030298,7]
[370297639,1751941851854,-500.0,0.00030308,7]
[370297640,1751941851863,-629.31754143,0.00030308,7]
[370297641,1751941851873,-765.59,0.00030308,7]
[370297642,1751941851882,-500.0,0.00030308,7]
[370297643,1751941851892,-1650.45,0.00030308,7]
[370297644,1751941851901,-475.0,0.00030341,2]
[370297645,1751941851911,-1726.49869007,0.00030362,2]
[370297646,1751941851920,-286.25,0.00030372,2]
[370297647,1751941851929,-4908.69387604,0.00030374,2]
[370297648,1751941851938,-1726.49869007,0.0003039,2]
[370297649,1751941851947,-1726.49869007,0.000304,2]
[370297650,1751941851956,-151.750325,0.000304,7]
[370297651,1751941851965,-151.0,0.000304,7]
[370297652,1751941851974,-151.0,0.000304,7]
[370297653,1751941851984,-500.0,0.000304,7]
[370297654,1751941851993,-151.0,0.000304,7]
[370297655,1751941852002,-158.499218,0.000304,7]
[370297656,1751941852012,-151.0,0.000304,7]
[370297657,1751941852021,-471.57236883,0.000304,7]
[370297658,1751941852031,-151.0,0.000304,7]
[370297659,1751941852041,-200.798666,0.000304,7]
[370297660,1751941852050,-200.798666,0.000304,7]
[370297661,1751941852176,-773.049683,0.000304,7]
[370297662,1751941852186,-773.049683,0.000304,7]
[370297663,1751941852196,-766.85295353,0.000304,2]
[370297664,1751941852206,-151.0,0.000304,7]
[370297665,1751941852215,-6905.99476028,0.000304,2]
[370297666,1751941852225,-366.68688792,0.00030407,7]
[370297667,1751941852236,-765.59,0.00030407,7]
[370297668,1751941852246,-500.0,0.00030407,7]
[370297669,1751941852255,-521.53,0.00030409,7]
[370297670,1751941852264,-820.97,0.00030409,7]
[370297671,1751941852275,-500.0,0.0003041,7]
[370297672,1751941852284,-150.0,0.0003041,7]
[370297673,1751941852295,-150.27248376,0.0003041,7]
[370297674,1751941852305,-500.0,0.0003041,7]
[370297675,1751941852315,-150.91852056,0.0003041,7]
[370297676,1751941852325,-500.0,0.0003041,7]
[370297677,1751941852334,-150.0,0.0003041,7]
[370297678,1751941852343,-150.54776115,0.0003041,7]
[370297679,1751941852353,-500.0,0.0003041,7]
[370297680,1751941852362,-500.0,0.0003041,7]
[370297681,1751941852371,-150.72716178,0.0003041,7]
[370297682,1751941852381,-500.0,0.0003041,7]
[370297683,1751941852391,-150.0,0.0003041,7]
[370297684,1751941852400,-502.37776663,0.0003041,7]
[370297685,1751941852409,-150.85013476,0.0003041,7]
[370297686,1751941852418,-152.68979092,0.0003041,7]
[370297687,1751941852428,-500.0,0.0003041,7]
[370297688,1751941852437,-152.66034362,0.0003041,7]
[370297689,1751941852447,-250.26685492,0.0003041,7]
[370297690,1751941852456,-150.0,0.0003041,7]
[370297691,1751941852466,-602.42965663,0.0003041,7]
[370297692,1751941852478,-154.09211616,0.0003041,7]
[370297693,1751941852488,-500.0,0.0003041,2]
[370297694,1751941852497,-1198.0,0.0003041,7]
[370297695,1751941852507,-500.0,0.0003041,7]
[370297696,1751941852518,-150.3504766,0.0003041,7]
[370297697,1751941852528,-500.0,0.0003041,2]
[370297698,1751941852538,-500.0,0.0003041,7]
[370297699,1751941852549,-500.0,0.0003041,60]
[370297700,1751941852560,-500.0,0.0003041,7]
[370297701,1751941852570,-566.0,0.0003041,7]
[370297702,1751941852579,-150.0,0.0003041,7]
[370297703,1751941852589,-503.45592073,0.0003041,7]
[370297704,1751941852599,-150.89782949,0.0003041,7]
[370297705,1751941852610,-150.65122981,0.0003041,7]
[370297706,1751941852619,-501.55946821,0.0003041,7]
[370297707,1751941852629,-500.0,0.0003041,7]
[370297708,1751941852639,-500.0,0.0003041,7]
[370297709,1751941852649,-500.0,0.0003041,7]
[370297710,1751941852659,-500.0,0.0003041,7]
[370297711,1751941852668,-500.0,0.0003041,7]
[370297712,1751941852679,-580.0,0.0003041,7]
[370297713,1751941852688,-460.0,0.0003041,7]
[370297714,1751941852698,-460.0,0.0003041,7]
[370297715,1751941852707,-460.0,0.0003041,7]
[370297716,1751941852716,-460.0,0.0003041,7]
[370297717,1751941852726,-151.0,0.0003041,7]
[370297718,1751941852735,-584.75,0.0003041,7]
[370297719,1751941852744,-151.0,0.0003041,7]
[370297720,1751941852753,-460.0,0.0003041,7]
[370297721,1751941852763,-151.0,0.0003041,7]
[370297722,1751941852772,-460.0,0.0003041,7]
[370297723,1751941852781,-151.0,0.0003041,7]
[370297724,1751941852792,-857.46,0.0003041,7]
[370297725,1751941852801,-460.0,0.0003041,7]
[370297726,1751941852810,-168.402767,0.0003041,7]
[370297727,1751941852819,-460.0,0.0003041,7]
[370297728,1751941852828,-460.0,0.0003041,7]
[370297729,1751941852838,-460.0,0.0003041,7]
[370297730,1751941852847,-460.0,0.0003041,7]
[370297731,1751941852856,-495.46762377,0.0003041,7]
[370297732,1751941852865,-151.0,0.0003041,7]
[370297733,1751941852875,-460.0,0.0003041,7]
[370297734,1751941852885,-151.0,0.0003041,7]
[370297735,1751941852894,-460.0,0.0003041,7]
[370297736,1751941852904,-460.0,0.0003041,7]
[370297737,1751941852913,-151.0,0.0003041,7]
[370297738,1751941852925,-151.0,0.0003041,7]
[370297739,1751941852947,-460.0,0.0003041,7]
[370297740,1751941852963,-460.0,0.0003041,7]
[370297741,1751941852982,-460.0,0.0003041,7]
[370297742,1751941853000,-460.0,0.0003041,7]
[370297743,1751941853015,-460.0,0.0003041,7]
[370297744,1751941853034,-151.0,0.0003041,7]
[370297745,1751941853053,-460.0,0.0003041,7]
[370297746,1751941853071,-694.68,0.0003041,7]
[370297747,1751941853087,-460.0,0.0003041,7]
[370297748,1751941853105,-498.2679758,0.0003041,7]
[370297749,1751941853121,-460.0,0.0003041,7]
[370297750,1751941853135,-726.7,0.0003041,7]
[370297751,1751941853154,-493.02346345,0.0003041,7]
[370297752,1751941853169,-460.0,0.0003041,7]
[370297753,1751941853188,-151.0,0.0003041,7]
[370297754,1751941853202,-460.0,0.0003041,7]
[370297755,1751941853216,-157.44031,0.0003041,7]
[370297756,1751941853231,-460.0,0.0003041,7]
[370297757,1751941853246,-460.0,0.0003041,7]
[370297758,1751941853260,-460.0,0.0003041,7]
[370297759,1751941853275,-460.0,0.0003041,7]
[370297760,1751941853289,-460.0,0.0003041,7]
[370297761,1751941853304,-695.84,0.0003041,7]
[370297762,1751941853318,-460.0,0.0003041,7]
[370297763,1751941853332,-460.0,0.0003041,7]
[370297764,1751941853346,-151.0,0.0003041,7]
[370297765,1751941853361,-151.0,0.0003041,7]
[370297766,1751941853376,-460.0,0.0003041,7]
[370297767,1751941853391,-460.0,0.0003041,7]
[370297768,1751941853405,-460.0,0.0003041,7]
[370297769,1751941853420,-460.0,0.0003041,7]
[370297770,1751941853434,-460.0,0.0003041,7]
[370297771,1751941853452,-460.0,0.0003041,7]
[370297772,1751941853467,-460.0,0.0003041,7]
[370297773,1751941853485,-672.92,0.0003041,7]
[370297774,1751941853500,-155.038339,0.0003041,7]
[370297775,1751941853517,-495.92869589,0.0003041,7]
[370297776,1751941853532,-219.0744368,0.0003041,7]
[370297777,1751941853547,-151.0,0.0003041,7]
[370297778,1751941853565,-460.0,0.0003041,7]
[370297779,1751941853583,-460.0,0.0003041,7]
[370297780,1751941853598,-460.0,0.0003041,7]
[370297781,1751941853613,-154.999699,0.0003041,7]
[370297782,1751941853629,-460.0,0.0003041,7]
[370297783,1751941853644,-460.0,0.0003041,7]
[370297784,1751941853658,-153.213429,0.0003041,7]
[370297785,1751941853673,-460.0,0.0003041,7]
[370297786,1751941853688,-460.0,0.0003041,7]
[370297787,1751941853704,-684.91,0.0003041,7]
[370297788,1751941853719,-460.0,0.0003041,7]
[370297789,1751941853734,-494.86870254,0.0003041,7]
[370297790,1751941853749,-151.0,0.0003041,7]
[370297791,1751941853764,-861.74,0.0003041,7]
[370297792,1751941853779,-151.0,0.0003041,7]
[370297793,1751941853795,-474.29590612,0.0003041,7]
[370297794,1751941853809,-460.0,0.0003041,7]
[370297795,1751941853825,-460.0,0.0003041,7]
[370297796,1751941853840,-460.0,0.0003041,7]
[370297797,1751941853854,-460.0,0.0003041,7]
[370297798,1751941853869,-151.0,0.0003041,7]
[370297799,1751941853885,-460.0,0.0003041,7]
[370297800,1751941853900,-460.0,0.0003041,7]
[370297801,1751941853915,-460.0,0.0003041,7]
[370297802,1751941853931,-460.0,0.0003041,7]
[370297803,1751941853947,-460.0,0.0003041,7]
[370297804,1751941853962,-460.0,0.0003041,7]
[370297805,1751941853978,-460.0,0.0003041,7]
[370297806,1751941853993,-460.0,0.0003041,7]
[370297807,1751941854008,-460.0,0.0003041,7]
[370297808,1751941854024,-157.147112,0.0003041,7]
[370297809,1751941854039,-460.0,0.0003041,7]
[370297810,1751941854055,-847.27,0.0003041,7]
[370297811,1751941854070,-460.0,0.0003041,7]
[370297812,1751941854079,-460.0,0.0003041,7]
[370297813,1751941854089,-460.0,0.0003041,7]
[370297814,1751941854099,-460.0,0.0003041,7]
[370297815,1751941854108,-151.0,0.0003041,7]
[370297816,1751941854118,-752.26,0.0003041,7]
[370297817,1751941854128,-460.0,0.0003041,7]
[370297818,1751941854346,-460.0,0.0003041,7]
[370297819,1751941854375,-460.0,0.0003041,7]
[370297820,1751941854390,-460.0,0.0003041,7]
[370297821,1751941854401,-460.0,0.0003041,7]
[370297822,1751941854410,-460.0,0.0003041,7]
[370297823,1751941854421,-460.0,0.0003041,7]
[370297824,1751941854432,-460.0,0.0003041,7]
[370297825,1751941854441,-460.0,0.0003041,7]
[370297826,1751941854451,-151.0,0.0003041,7]
[370297827,1751941854461,-460.0,0.0003041,7]
[370297828,1751941854476,-460.0,0.0003041,7]
[370297829,1751941854485,-460.0,0.0003041,7]
[370297830,1751941854495,-460.0,0.0003041,7]
[370297831,1751941854504,-151.0,0.0003041,7]
[370297832,1751941854514,-460.0,0.0003041,7]
[370297833,1751941854523,-460.0,0.0003041,7]
[370297834,1751941854533,-460.0,0.0003041,7]
[370297835,1751941854544,-1129.21,0.0003041,7]
[370297836,1751941854553,-460.0,0.0003041,7]
[370297837,1751941854563,-460.0,0.0003041,7]
[370297838,1751941854783,-460.0,0.0003041,7]
[370297839,1751941854794,-859.22,0.0003041,7]
[370297840,1751941854803,-527.66546723,0.0003041,7]
[370297841,1751941854813,-496.05,0.0003041,7]
[370297842,1751941854822,-151.0,0.0003041,7]
[370297843,1751941854832,-460.0,0.0003041,7]
[370297844,1751941854841,-460.0,0.0003041,7]
[370297845,1751941854850,-473.0519916,0.0003041,7]
[370297846,1751941854859,-727.29,0.0003041,7]
[370297847,1751941854868,-308.45040114,0.0003041,7]
[370297848,1751941854877,-460.0,0.0003041,7]
[370297849,1751941854886,-460.0,0.0003041,7]
[370297850,1751941854896,-491.36,0.0003041,7]
[370297851,1751941854905,-460.0,0.0003041,7]
[370297852,1751941854915,-152.81557,0.0003041,7]
[370297853,1751941854924,-460.0,0.0003041,7]
[370297854,1751941854933,-460.0,0.0003041,7]
[370297855,1751941854943,-460.0,0.0003041,7]
[370297856,1751941854952,-460.0,0.0003041,7]
[370297857,1751941854962,-659.35,0.0003041,7]
[370297858,1751941854972,-1031.55,0.0003041,7]